bitfinex/quotes_BTCUSD_20250513
["timestamp","ask_amount","ask_price","bid_price","bid_amount"]
[1747143131351,0.21945367,103830.0,103820.0,0.63338511]
[1747143131565,0.21945367,103830.0,103820.0,0.64301697]
[1747143131779,0.03646196,103830.0,103820.0,0.65264874]
[1747143132007,0.22908451,103830.0,103820.0,0.65264874]
[1747143132227,0.01163029,103830.0,103820.0,1.21113684]
[1747143132451,0.002,103830.0,103820.0,1.21113684]
[1747143132669,0.002,103830.0,103820.0,1.54929984]
[1747143132893,0.002,103830.0,103820.0,1.43074284]
[1747143133134,0.01163038,103830.0,103820.0,1.43074284]
[1747143133350,0.002,103830.0,103820.0,1.21113684]
[1747143133569,0.002,103830.0,103820.0,1.36032884]
[1747143133776,0.01163038,103830.0,103820.0,1.36032884]
[1747143134177,0.01163038,103830.0,103820.0,1.21113684]
[1747143134415,0.01163029,103830.0,103820.0,1.46179284]
[1747143134580,0.02126076,103830.0,103820.0,1.46179284]
[1747143134807,0.002,103830.0,103820.0,1.43628184]
[1747143135011,0.002,103830.0,103820.0,1.86508184]
[1747143136550,0.002,103830.0,103820.0,2.22018184]
[1747143137006,0.00048432,103840.0,103830.0,0.5931148]
[1747143137214,0.00048432,103840.0,103830.0,4.54890754]
[1747143137890,0.03,103870.0,103860.0,0.67299849]
[1747143138103,0.03,103870.0,103860.0,3.13157819]
[1747143138325,0.01741424,103870.0,103860.0,3.13157819]
[1747143139148,0.02841424,103870.0,103860.0,3.13257819]
[1747143139573,0.03941424,103870.0,103860.0,1.62193319]
[1747143139774,0.03941424,103870.0,103860.0,3.99523519]
[1747143140328,0.02841424,103870.0,103860.0,4.00973519]
[1747143140772,0.01741424,103870.0,103860.0,3.93643519]
[1747143140988,0.02741424,103870.0,103860.0,3.92193519]
[1747143141211,0.03741424,103870.0,103860.0,3.25258819]
[1747143141418,0.03741424,103870.0,103860.0,3.20336719]
[1747143142029,0.03741424,103870.0,103860.0,3.09982119]
[1747143142456,0.03741424,103870.0,103860.0,2.60480719]
[1747143143086,0.01778367,103870.0,103860.0,2.60480719]
[1747143143295,0.01778367,103870.0,103860.0,2.63840546]
[1747143145394,0.01778367,103870.0,103860.0,2.22630631]
[1747143145634,0.01778367,103870.0,103860.0,2.65274631]
[1747143148234,0.03703711,103870.0,103860.0,0.47800964]
[1747143148447,0.25846725,103870.0,103860.0,0.74698561]
[1747143148650,0.24578677,103870.0,103860.0,0.71826161]
[1747143148866,0.26128677,103870.0,103860.0,0.2154253]
[1747143149087,0.26128677,103870.0,103860.0,0.0020973]
[1747143149379,0.60128677,103870.0,103860.0,0.0020973]
[1747143149595,1.15014384,103870.0,103860.0,0.0020973]
[1747143150303,0.58446374,103840.0,103830.0,0.21328]
[1747143150537,0.3562,103840.0,103830.0,0.4347948]
[1747143150812,0.0162,103840.0,103830.0,0.98365187]
[1747143150991,0.04408641,103850.0,103840.0,0.2311232]
[1747143151203,0.0440865,103850.0,103840.0,0.2311232]
[1747143151411,0.24630113,103850.0,103840.0,0.21186392]
[1747143151618,0.23667251,103850.0,103840.0,0.22149403]
[1747143151839,0.001,103840.0,103830.0,0.53310328]
[1747143152068,0.03635919,103840.0,103830.0,0.53310328]
[1747143152286,0.25785256,103840.0,103830.0,0.52247355]
[1747143152490,0.05561846,103840.0,103830.0,0.52247355]
[1747143152700,0.05561846,103840.0,103830.0,0.61862255]
[1747143152701,0.22896383,103840.0,103830.0,0.61862255]
[1747143152912,0.21933401,103840.0,103830.0,0.40590255]
[1747143153136,0.37556364,103820.0,103810.0,0.03930282]
[1747143153417,0.37556364,103820.0,103800.0,0.4348577]
[1747143153418,0.03556475,103810.0,103800.0,0.4348577]
[1747143153627,0.03556475,103810.0,103800.0,0.97034745]
[1747143153628,0.03556466,103810.0,103800.0,0.97034745]
[1747143153850,0.04519727,103810.0,103800.0,0.0973094]
[1747143154080,0.04400061,103800.0,103790.0,0.83846]
[1747143154304,0.22704557,103800.0,103790.0,0.42616]
[1747143154521,0.24334557,103800.0,103790.0,0.21336432]
[1747143155398,0.24334557,103800.0,103790.0,0.00048432]
[1747143155702,0.24434557,103800.0,103790.0,0.00748432]
[1747143156288,0.24434557,103800.0,103790.0,0.20981585]
[1747143156501,0.24434557,103800.0,103790.0,0.00748432]
[1747143157546,0.58434557,103800.0,103790.0,0.00748432]
[1747143157765,1.23151204,103800.0,103790.0,0.01548432]
[1747143158410,1.24605289,103800.0,103790.0,0.01548432]
[1747143158629,0.58450667,103770.0,103760.0,0.002]
[1747143158843,0.58450667,103770.0,103760.0,0.00204846]
[1747143159054,1.13336374,103770.0,103760.0,0.00204846]
[1747143159477,1.18126011,103770.0,103760.0,0.00204846]
[1747143159757,1.13336374,103770.0,103760.0,0.00204846]
[1747143159990,0.68181607,103770.0,103760.0,0.00204846]
[1747143160979,0.58550667,103770.0,103760.0,0.19480096]
[1747143161200,0.56930667,103770.0,103760.0,0.19480096]
[1747143161674,0.56930667,103770.0,103760.0,0.00204846]
[1747143161898,0.58570667,103770.0,103760.0,0.00204846]
[1747143162154,0.36693595,103770.0,103760.0,0.19480096]
[1747143162368,0.36693595,103770.0,103760.0,0.85162413]
[1747143162369,0.003,103770.0,103760.0,0.85162413]
[1747143162600,0.003,103770.0,103760.0,0.62608998]
[1747143163318,0.003,103770.0,103760.0,0.61154913]
[1747143163577,0.003,103770.0,103760.0,1.3540308]
[1747143164191,0.003,103770.0,103760.0,0.90248313]
[1747143164444,0.003,103770.0,103760.0,1.36857165]
[1747143164691,0.003,103770.0,103760.0,1.29144463]
[1747143166520,0.003,103770.0,103760.0,1.71964463]
[1747143166754,0.003,103770.0,103760.0,2.68011932]
[1747143166991,0.0156,103810.0,103760.0,2.57890757]
[1747143167253,0.22730567,103820.0,103810.0,0.20229264]
[1747143167494,0.02503196,103820.0,103810.0,0.20229264]
[1747143167747,0.06139262,103830.0,103820.0,0.21190492]
[1747143167981,0.0161,103830.0,103820.0,0.22153614]
[1747143168229,0.20232009,103840.0,103830.0,0.20225367]
[1747143168230,0.22149347,103840.0,103830.0,0.20225367]
[1747143168459,0.22197788,103840.0,103830.0,0.20225367]
[1747143168704,0.01926132,103830.0,103820.0,0.51302218]
[1747143168928,0.01011423,103840.0,103830.0,0.20225358]
[1747143169149,0.22197788,103840.0,103830.0,0.20225358]
[1747143169369,0.35974378,103840.0,103830.0,0.20225358]
[1747143169601,0.0293737,103840.0,103830.0,0.4353948]
[1747143169827,0.01011396,103840.0,103830.0,0.4353948]
[1747143170081,0.02937361,103840.0,103830.0,0.4353948]
[1747143170294,0.01974341,103840.0,103830.0,0.5327042]
[1747143170519,0.00048441,103840.0,103830.0,0.5327042]
[1747143170751,0.00048441,103840.0,103830.0,0.98725187]
[1747143171231,0.00048441,103840.0,103830.0,1.57522587]
[1747143171486,0.00048441,103840.0,103830.0,1.57222587]
[1747143171721,0.00048441,103840.0,103830.0,1.94392587]
[1747143171954,0.00048441,103840.0,103830.0,1.94692587]
[1747143172193,0.00148441,103840.0,103830.0,1.95392587]
[1747143172697,0.00048441,103840.0,103830.0,1.94692587]
[1747143172893,0.00048441,103840.0,103830.0,2.39847354]
[1747143173102,0.00048441,103840.0,103830.0,1.94692587]
[1747143173757,0.00048441,103840.0,103830.0,1.94192587]
[1747143173988,0.00148441,103840.0,103830.0,1.95192587]
[1747143174117,0.00248441,103840.0,103830.0,1.96292587]
[1747143175824,0.00248441,103840.0,103830.0,2.41447354]
[1747143176605,0.0155964,103880.0,103870.0,0.67297717]
[1747143176818,0.02536735,103880.0,103870.0,1.19732657]
[1747143177033,0.0157417,103880.0,103870.0,0.7457789]
[1747143177237,0.02536745,103880.0,103870.0,0.7457789]
[1747143177443,0.02536745,103880.0,103870.0,0.52291213]
[1747143177660,0.22752396,103880.0,103870.0,0.19254837]
[1747143177880,0.23369803,103880.0,103870.0,0.62909569]
[1747143178083,0.02888058,103870.0,103860.0,0.42508626]
[1747143178286,0.02888058,103870.0,103860.0,0.74578335]
[1747143178889,0.23105599,103870.0,103860.0,0.31874335]
[1747143179109,0.04813522,103870.0,103860.0,0.74550335]
[1747143179309,0.03850799,103870.0,103860.0,0.74550335]
[1747143179512,0.04813577,103870.0,103860.0,0.73587566]
[1747143179745,0.03850836,103870.0,103860.0,0.74550335]
[1747143180127,0.0157417,103880.0,103870.0,0.2214295]
[1747143180391,0.0157417,103880.0,103870.0,0.77028657]
[1747143180601,0.0157417,103880.0,103870.0,2.00159557]
[1747143181158,0.0157417,103880.0,103870.0,1.19704657]
[1747143181400,0.0157417,103880.0,103870.0,3.04759657]
[1747143181612,0.0157417,103880.0,103870.0,2.46776657]
[1747143181814,0.02536754,103880.0,103870.0,1.1428419]
[1747143182013,0.02536754,103880.0,103870.0,0.62425113]
[1747143182187,0.04462005,103880.0,103870.0,0.74411232]
[1747143182407,0.04462005,103880.0,103870.0,0.76336622]
[1747143182605,0.2371498,103880.0,103870.0,0.1053094]
[1747143182819,0.25902396,103880.0,103870.0,0.22172]
[1747143183024,0.25902396,103880.0,103870.0,0.43352264]
[1747143183423,0.24402396,103880.0,103870.0,0.43352264]
[1747143183597,0.24402396,103880.0,103870.0,0.42952264]
[1747143183825,0.24402386,103880.0,103870.0,0.42552273]
[1747143184000,0.0167417,103880.0,103870.0,1.40883957]
[1747143184210,0.0167417,103880.0,103870.0,1.41083957]
[1747143185259,0.0050817,103880.0,103870.0,1.42723957]
[1747143185519,0.0050817,103880.0,103870.0,1.78283957]
[1747143185729,0.0050817,103880.0,103870.0,1.78083957]
[1747143185944,0.0050817,103880.0,103870.0,2.23238724]
[1747143186156,0.0050817,103880.0,103870.0,1.78083957]
[1747143186396,0.0040817,103880.0,103870.0,1.78083957]
[1747143186605,0.0040817,103880.0,103870.0,1.78483957]
[1747143186821,0.0040817,103880.0,103870.0,1.78083957]
[1747143187027,0.0040817,103880.0,103870.0,2.23238724]
[1747143187240,0.002,103910.0,103900.0,0.19249278]
[1747143187456,0.002,103910.0,103900.0,2.37090509]
[1747143187677,0.002,103910.0,103900.0,2.36898064]
[1747143188140,0.002,103910.0,103900.0,2.72538064]
[1747143188981,0.002,103910.0,103900.0,2.72638064]
[1747143189184,0.002,103910.0,103900.0,2.7411055]
[1747143189410,0.002,103910.0,103900.0,2.7441055]
[1747143189617,0.002,103910.0,103900.0,2.7277055]
[1747143189837,0.002,103910.0,103900.0,1.44330183]
[1747143190046,0.01162297,103910.0,103900.0,0.79889083]
[1747143190260,0.24602027,103910.0,103900.0,0.0983094]
[1747143190494,0.58602101,103910.0,103900.0,0.001]
[1747143190721,1.13487808,103910.0,103900.0,0.001]
[1747143190940,1.56479808,103910.0,103900.0,0.006]
[1747143191158,1.56479808,103910.0,103900.0,0.005]
[1747143191833,1.56479808,103910.0,103900.0,0.006]
[1747143192512,0.21785614,103880.0,103860.0,1.06720731]
[1747143192722,0.22142913,103870.0,103860.0,1.15503506]
[1747143192945,0.01925381,103870.0,103860.0,1.16466275]
[1747143193163,0.02888095,103870.0,103860.0,1.16466275]
[1747143193389,0.00962658,103870.0,103860.0,1.16466275]
[1747143193609,0.03850743,103870.0,103860.0,1.16466275]
[1747143193935,0.24068312,103870.0,103860.0,1.16466284]
[1747143194179,0.24068312,103870.0,103860.0,0.3121347]
[1747143194180,0.2273031,103870.0,103860.0,0.3121347]
[1747143194385,0.2433031,103870.0,103860.0,0.3121347]
[1747143194587,0.2433031,103870.0,103860.0,0.19371221]
[1747143194796,0.2433031,103870.0,103860.0,0.20334055]
[1747143194996,0.2433031,103870.0,103860.0,0.22259696]
[1747143195409,0.3555,103880.0,103870.0,0.21180292]
[1747143195617,0.04437742,103880.0,103870.0,0.7799138]
[1747143195806,0.23690791,103880.0,103870.0,0.3091125]
[1747143196015,0.23690791,103880.0,103870.0,0.32836677]
[1747143196218,0.22728216,103880.0,103870.0,0.31873973]
[1747143196347,0.21765614,103880.0,103870.0,0.31873973]
[1747143196755,0.04437871,103880.0,103870.0,0.33799354]
[1747143196963,0.02887761,103880.0,103870.0,0.33036539]
[1747143197165,0.04813003,103880.0,103870.0,0.33036539]
[1747143197391,0.01925159,103880.0,103870.0,0.33036539]
[1747143197596,0.00962482,103890.0,103880.0,0.22140819]
[1747143197775,0.24063717,103890.0,103880.0,0.31871777]
[1747143198223,0.22138735,103890.0,103880.0,0.0973094]
[1747143198410,0.23738735,103890.0,103880.0,0.30909175]
[1747143198627,0.23738735,103890.0,103880.0,0.31871777]
[1747143198843,0.23738735,103890.0,103880.0,0.3283437]
[1747143199301,0.23738735,103890.0,103880.0,0.30909175]
[1747143199522,0.23738735,103890.0,103880.0,0.31871759]
[1747143199734,0.00962399,103900.0,103890.0,0.23101188]
[1747143199942,0.02812287,103910.0,103900.0,0.22136557]
[1747143200112,0.02124593,103910.0,103900.0,1.19970264]
[1747143200361,0.03086927,103910.0,103900.0,0.74815497]
[1747143200586,0.23296788,103910.0,103900.0,0.5267894]
[1747143200853,0.22962148,103910.0,103900.0,0.42948]
[1747143201097,0.21801723,103900.0,103890.0,0.21368]
[1747143201269,0.21801723,103900.0,103890.0,0.40619131]
[1747143201491,0.23726594,103900.0,103890.0,0.21176216]
[1747143201665,0.04477316,103900.0,103890.0,0.43506744]
[1747143201888,0.02887316,103900.0,103890.0,0.45431754]
[1747143202140,0.02887316,103900.0,103890.0,0.44469263]
[1747143202141,0.23099057,103900.0,103890.0,0.44469263]
[1747143202313,0.2213664,103900.0,103890.0,0.42544206]
[1747143202873,0.57381741,103900.0,103890.0,0.21368]
[1747143203298,0.57381741,103900.0,103890.0,0.21468]
[1747143203726,0.57381741,103900.0,103890.0,0.003]
[1747143205620,0.57381741,103900.0,103890.0,0.002]
[1747143206021,0.21733669,103890.0,103880.0,0.00962649]
[1747143206223,0.23103393,103880.0,103870.0,0.86681405]
[1747143206428,0.21178253,103880.0,103870.0,0.97658767]
[1747143206686,0.22778253,103880.0,103870.0,0.34610767]
[1747143206888,0.22778253,103880.0,103870.0,0.24879827]
[1747143206889,0.24348253,103880.0,103870.0,0.24879827]
[1747143207111,0.24348253,103880.0,103870.0,0.03359827]
[1747143207304,0.24348253,103880.0,103870.0,0.23577387]
[1747143207546,0.23385623,103880.0,103870.0,0.03359827]
[1747143207755,0.2021756,103870.0,103860.0,0.21468]
[1747143207948,0.2021756,103870.0,103860.0,0.3121347]
[1747143208113,0.2329756,103870.0,103860.0,0.0001453]
[1747143208529,0.5729756,103870.0,103860.0,0.0001453]
[1747143209115,0.02462714,103870.0,103860.0,0.0001453]
[1747143209355,0.20892984,103880.0,103860.0,0.32083056]
[1747143209715,0.0096263,103880.0,103870.0,0.2214295]
[1747143209924,0.22140865,103880.0,103870.0,0.20217569]
[1747143210124,0.21178263,103880.0,103860.0,0.3092769]
[1747143210336,0.00962686,103870.0,103860.0,0.3092769]
[1747143210546,0.01925363,103870.0,103860.0,0.3092769]
[1747143210748,0.21178216,103880.0,103870.0,0.21180292]
[1747143210990,0.22140865,103880.0,103870.0,0.21180292]
[1747143211168,0.21178263,103880.0,103870.0,0.2118031]
[1747143211315,0.2021756,103870.0,103860.0,0.30927765]
[1747143211520,0.0288815,103870.0,103860.0,0.32853312]
[1747143211716,0.01925381,103870.0,103860.0,0.32853312]
[1747143211950,0.00962677,103870.0,103860.0,0.70824712]
[1747143212122,0.02888077,103870.0,103860.0,0.46594712]
[1747143212318,0.00962621,103880.0,103870.0,0.21180255]
[1747143212518,0.01062565,103880.0,103870.0,0.31873872]
[1747143212721,0.21841732,103900.0,103890.0,0.01925066]
[1747143212951,0.23766621,103900.0,103890.0,0.20213678]
[1747143213121,0.22804195,103900.0,103880.0,0.43664708]
[1747143213361,0.22804195,103900.0,103880.0,0.53395648]
[1747143214100,0.22776197,103890.0,103880.0,0.21524]
[1747143214362,0.24416197,103890.0,103880.0,0.21524]
[1747143214840,0.58416197,103890.0,103880.0,0.21524]
[1747143217366,0.21180246,103870.0,103860.0,0.4368364]
[1747143217581,0.2214296,103870.0,103860.0,0.52451774]
[1747143217921,0.24068433,103870.0,103860.0,0.3189059]
[1747143218149,0.2276031,103870.0,103860.0,0.0001453]
[1747143218340,0.5839031,103870.0,103860.0,0.0001453]
[1747143218907,0.5839031,103870.0,103860.0,0.0031453]
[1747143219319,0.5676031,103870.0,103860.0,0.21396843]
[1747143219523,0.56143014,103870.0,103860.0,0.22159631]
[1747143219727,0.35925381,103870.0,103860.0,0.231224]
[1747143219938,0.57105673,103870.0,103860.0,0.231224]
[1747143220144,0.20215633,103880.0,103870.0,0.21180255]
[1747143220314,0.21178254,103880.0,103870.0,0.2021756]
[1747143220524,0.21178254,103880.0,103870.0,0.20217578]
[1747143220725,0.21178254,103880.0,103870.0,0.21180301]
[1747143221546,0.21180282,103870.0,103860.0,0.31890543]
[1747143221771,0.20952984,103880.0,103870.0,0.20217569]
[1747143221986,0.20952984,103880.0,103870.0,0.19254837]
[1747143222192,0.20952984,103880.0,103870.0,0.20217569]
[1747143223020,0.001,103880.0,103870.0,0.2214295]
[1747143223264,0.23303422,103880.0,103870.0,0.21180273]
[1747143223468,0.02125168,103880.0,103870.0,0.3187389]
[1747143223611,0.002,103880.0,103870.0,0.95222557]
[1747143224206,0.23303412,103880.0,103870.0,0.30911232]
[1747143224409,0.03087779,103880.0,103870.0,0.31873936]
[1747143224608,0.23303393,103880.0,103870.0,0.28985777]
[1747143224853,0.03087844,103880.0,103870.0,0.31873909]
[1747143225068,0.23303467,103880.0,103870.0,0.31873936]
[1747143225268,0.04050483,103880.0,103870.0,0.54404622]
[1747143225475,0.23303467,103880.0,103870.0,0.54404622]
[1747143225680,0.22340828,103880.0,103870.0,0.55367299]
[1747143225883,0.23303467,103880.0,103870.0,0.55367299]
[1747143226082,0.04050483,103880.0,103870.0,0.55367299]
[1747143226341,0.02125214,103880.0,103870.0,0.55367299]
[1747143226547,0.01162565,103880.0,103870.0,0.45636359]
[1747143226708,0.002,103880.0,103870.0,0.45636359]
[1747143227288,0.01162584,103880.0,103870.0,0.45636359]
[1747143227689,0.03087798,103880.0,103870.0,0.45636359]
[1747143227919,0.02125177,103880.0,103870.0,0.45636359]
[1747143228826,0.02125186,103880.0,103870.0,0.45636359]
[1747143229125,0.02125186,103880.0,103870.0,0.79636359]
[1747143229336,0.03087816,103880.0,103870.0,0.79636359]
[1747143229542,0.02125186,103880.0,103870.0,0.79636359]
[1747143230247,0.03087807,103880.0,103870.0,0.79636359]
[1747143230513,0.02125186,103880.0,103870.0,0.79636359]
[1747143231127,0.02125177,103880.0,103870.0,0.79636359]
[1747143231329,0.03087779,103880.0,103870.0,0.79636359]
[1747143231556,0.002,103880.0,103870.0,1.34522066]
[1747143231992,0.01162584,103880.0,103870.0,0.89367299]
[1747143232221,0.2137817,103880.0,103870.0,0.87441936]
[1747143232412,0.03087807,103880.0,103870.0,0.88404613]
[1747143232645,0.04050446,103880.0,103870.0,0.64911232]
[1747143232853,0.03087807,103880.0,103870.0,0.86399232]
[1747143233062,0.03087807,103880.0,103870.0,0.74730837]
[1747143233063,0.21378244,103880.0,103870.0,0.74730837]
[1747143233268,0.21378244,103880.0,103870.0,0.53254837]
[1747143233269,0.21945623,103880.0,103870.0,0.53254837]
[1747143233481,0.0153,103870.0,103860.0,0.53271221]
[1747143233691,0.0273263,103880.0,103870.0,0.55180273]
[1747143233899,0.02125232,103880.0,103870.0,0.5614295]
[1747143234096,0.23303504,103880.0,103870.0,0.56142968]
[1747143234304,0.23203504,103880.0,103870.0,0.56142968]
[1747143234511,0.02025177,103880.0,103870.0,0.67799271]
[1747143234719,0.03950428,103880.0,103870.0,0.67799271]
[1747143235135,0.23203523,103880.0,103870.0,0.63948509]
[1747143235338,0.23203523,103880.0,103870.0,0.65873946]
[1747143235507,0.23303523,103880.0,103870.0,0.56143006]
[1747143235839,0.22340874,103880.0,103870.0,0.5710571]
[1747143236081,0.23303523,103880.0,103870.0,0.58068405]
[1747143236503,0.21378272,103880.0,103870.0,0.56143006]
[1747143236809,0.20415633,103880.0,103870.0,0.54217569]
[1747143236952,0.19452984,103880.0,103870.0,0.54217569]
[1747143237570,0.19452984,103880.0,103870.0,0.55180292]
[1747143238002,0.19452984,103880.0,103870.0,0.34]
[1747143238335,0.002,103880.0,103870.0,1.63938662]
[1747143238957,0.002,103880.0,103870.0,1.55655062]
[1747143239722,0.22340828,103880.0,103870.0,1.06876509]
[1747143239951,0.22340884,103880.0,103870.0,0.97145578]
[1747143240148,0.22968263,103880.0,103870.0,0.74742837]
[1747143240510,0.22968263,103880.0,103870.0,0.77630996]
[1747143240695,0.21378216,103880.0,103870.0,0.77630996]
[1747143241088,0.21378216,103880.0,103870.0,0.77631015]
[1747143241242,0.002,103880.0,103870.0,0.79556396]
[1747143241447,0.002,103880.0,103870.0,1.34442103]
[1747143241656,0.002,103880.0,103870.0,2.51113903]
[1747143241845,0.002,103880.0,103870.0,2.52743903]
[1747143242041,0.002,103880.0,103870.0,1.71166003]
[1747143242261,0.002,103880.0,103870.0,1.68758703]
[1747143242457,0.23303412,103880.0,103870.0,0.63948518]
[1747143242661,0.23303412,103880.0,103870.0,0.98140246]
[1747143242905,0.23303412,103880.0,103870.0,0.99102978]
[1747143243137,0.23303412,103880.0,103870.0,1.00065664]
[1747143243256,0.22958254,103880.0,103870.0,0.55180301]
[1747143243462,0.22958254,103880.0,103870.0,0.56143005]
[1747143243729,0.22858254,103880.0,103870.0,0.54217578]
[1747143244052,0.2326756,103870.0,103860.0,0.0001453]
[1747143244261,0.2326756,103870.0,103860.0,0.53271221]
[1747143244464,0.2326756,103870.0,103860.0,0.3401453]
[1747143244880,0.24230274,103870.0,103860.0,0.53271221]
[1747143245090,0.22680274,103870.0,103860.0,0.54234037]
[1747143245304,0.03425437,103870.0,103860.0,0.55196843]
[1747143245532,0.0096263,103880.0,103870.0,0.01925436]
[1747143245764,0.23103431,103880.0,103870.0,0.213728]
[1747143245947,0.22140856,103880.0,103870.0,0.65372336]
[1747143246798,0.20217551,103870.0,103860.0,1.08156928]
[1747143247006,0.01925409,103870.0,103860.0,0.65890552]
[1747143247207,0.00962667,103870.0,103860.0,0.66853349]
[1747143247442,0.02025196,103880.0,103870.0,0.57105655]
[1747143247695,0.22240819,103880.0,103870.0,0.55180292]
[1747143248147,0.21278235,103880.0,103870.0,0.55180292]
[1747143248384,0.2021756,103870.0,103860.0,0.0001453]
[1747143248587,0.331085,103870.0,103860.0,0.0001453]
[1747143249869,0.331085,103870.0,103860.0,0.5457669]
[1747143249870,0.22830274,103870.0,103860.0,0.5457669]
[1747143250079,0.22830274,103870.0,103860.0,0.3339434]
[1747143250293,0.22830274,103870.0,103850.0,0.9046716]
[1747143250294,0.01925557,103860.0,103850.0,0.9046716]
[1747143250488,0.02888317,103860.0,103850.0,1.001981]
[1747143250689,0.03851133,103860.0,103850.0,1.001981]
[1747143251119,0.02888317,103860.0,103850.0,1.001981]
[1747143251238,0.03851133,103860.0,103850.0,1.001981]
[1747143251442,0.03851123,103860.0,103850.0,1.11964864]
[1747143251656,0.23107897,103860.0,103850.0,0.64992631]
[1747143251861,0.23107897,103860.0,103850.0,0.341]
[1747143252069,0.24342331,103860.0,103850.0,0.341]
[1747143252321,0.24342331,103860.0,103850.0,0.343]
[1747143253368,0.34073271,103860.0,103850.0,0.343]
[1747143253991,0.34073271,103860.0,103850.0,0.342]
[1747143254208,0.34073271,103860.0,103850.0,0.34]
[1747143254389,0.24342331,103860.0,103850.0,0.54221472]
[1747143254594,0.22682331,103860.0,103850.0,0.5518439]
[1747143254951,0.22682331,103860.0,103850.0,0.54221463]
[1747143255275,0.22682331,103860.0,103850.0,0.34]
[1747143255276,0.21719525,103860.0,103850.0,0.34]
[1747143255513,0.23329525,103860.0,103850.0,0.34]
[1747143256145,0.26626579,103860.0,103830.0,0.22812153]
[1747143256346,0.21186374,103840.0,103830.0,0.01408153]
[1747143256579,0.21188442,103830.0,103820.0,0.4075611]
[1747143256780,0.21188442,103830.0,103820.0,0.7475611]
[1747143256987,0.20225358,103830.0,103820.0,0.56912766]
[1747143257187,0.21190464,103820.0,103810.0,0.22578642]
[1747143257393,0.21190464,103820.0,103810.0,0.67272861]
[1747143257596,0.21190464,103820.0,103810.0,0.33272871]
[1747143257801,0.21190464,103820.0,103810.0,0.23541931]
[1747143258005,0.21204437,103820.0,103810.0,0.2450521]
[1747143258206,0.21204437,103820.0,103810.0,0.58505201]
[1747143258410,0.21204437,103820.0,103810.0,0.25468443]
[1747143258618,0.24434437,103820.0,103810.0,0.03312676]
[1747143258823,0.23471269,103820.0,103810.0,0.03612676]
[1747143259026,0.23471269,103820.0,103810.0,0.003]
[1747143259235,0.22508083,103820.0,103810.0,0.343]
[1747143259408,0.20868083,103820.0,103810.0,0.343]
[1747143259822,0.20868083,103820.0,103810.0,0.346]
[1747143260024,0.20868083,103820.0,103810.0,0.35563298]
[1747143260190,0.20868083,103820.0,103810.0,0.56455814]
[1747143260400,0.20241269,103820.0,103810.0,0.57419065]
[1747143260592,0.20241269,103820.0,103810.0,0.55492553]
[1747143260795,0.20241269,103820.0,103810.0,0.343]
[1747143260996,0.20241269,103820.0,103810.0,0.34]
[1747143261208,0.20241269,103820.0,103810.0,0.53365966]
[1747143261432,0.20241269,103820.0,103810.0,0.54329264]
[1747143261712,0.01940263,103820.0,103810.0,1.02165611]
[1747143261924,0.23130737,103820.0,103810.0,1.0216562]
[1747143262128,0.23130737,103820.0,103810.0,0.57119055]
[1747143262129,0.22167606,103820.0,103810.0,0.57119055]
[1747143262327,0.00977104,103820.0,103810.0,1.12859802]
[1747143262545,0.03866589,103820.0,103810.0,0.78859802]
[1747143262750,0.03866654,103820.0,103810.0,0.78859821]
[1747143262984,0.22155776,103810.0,103800.0,1.08094326]
[1747143263197,0.22824465,103820.0,103810.0,0.20229264]
[1747143263417,0.01926456,103810.0,103800.0,1.54104208]
[1747143263628,0.03852996,103810.0,103800.0,1.54104208]
[1747143263860,0.22155804,103810.0,103800.0,1.09057689]
[1747143264061,0.21192553,103810.0,103800.0,1.09057698]
[1747143264287,0.22515966,103810.0,103800.0,0.53863136]
[1747143264496,0.22515966,103810.0,103800.0,0.502]
[1747143264703,0.26695371,103810.0,103800.0,0.502]
[1747143264908,0.36426311,103810.0,103800.0,0.002]
[1747143265339,0.32246906,103810.0,103800.0,0.003]
[1747143265551,0.22515966,103810.0,103800.0,0.19567822]
[1747143265762,0.20865966,103810.0,103800.0,0.002]
[1747143266178,0.20865966,103810.0,103790.0,0.22702576]
[1747143266179,0.21194529,103800.0,103790.0,0.22702576]
[1747143266394,0.2215791,103800.0,103790.0,0.22702603]
[1747143266602,0.23121273,103800.0,103790.0,0.24629523]
[1747143266869,0.22157938,103800.0,103790.0,0.24629533]
[1747143267044,0.22157938,103800.0,103790.0,0.24629542]
[1747143267265,0.01926735,103800.0,103790.0,0.25592988]
[1747143267454,0.03853358,103800.0,103790.0,0.26556406]
[1747143267658,0.2312118,103800.0,103790.0,0.27235445]
[1747143267905,0.22157873,103800.0,103790.0,0.27335445]
[1747143268580,0.21194538,103800.0,103790.0,0.26371999]
[1747143268789,0.21194538,103800.0,103790.0,0.28298892]
[1747143269026,0.21194538,103800.0,103790.0,0.27335455]
[1747143269346,0.21194538,103800.0,103790.0,0.003]
[1747143269347,0.21881194,103800.0,103790.0,0.003]
[1747143270018,0.23521194,103800.0,103790.0,0.003]
[1747143271110,0.36866459,103800.0,103790.0,0.003]
[1747143271330,0.33252134,103800.0,103790.0,0.003]
[1747143271832,0.23521194,103800.0,103790.0,0.19569679]
[1747143272074,0.00013973,103820.0,103810.0,0.22155749]
[1747143272301,0.02903412,103820.0,103810.0,0.67202323]
[1747143272537,0.00977095,103820.0,103810.0,0.67202323]
[1747143272776,0.01940235,103820.0,103810.0,0.67202323]
[1747143273031,0.00013973,103820.0,103810.0,1.12443263]
[1747143273265,0.00013973,103820.0,103810.0,1.10933263]
[1747143273501,0.03003467,103820.0,103810.0,0.53265966]
[1747143273739,0.02903467,103820.0,103810.0,0.55192516]
[1747143273987,0.23130782,103820.0,103810.0,0.21392534]
[1747143274204,0.23230782,103820.0,103810.0,0.21392534]
[1747143274436,0.03966589,103820.0,103810.0,0.24819018]
[1747143274651,0.02040244,103820.0,103810.0,0.66439108]
[1747143274868,0.00013973,103820.0,103810.0,1.03985602]
[1747143275092,0.01940253,103820.0,103810.0,1.04085602]
[1747143275319,0.01940253,103820.0,103810.0,1.13816542]
[1747143275320,0.00013973,103820.0,103810.0,1.13816542]
[1747143275774,0.00013973,103820.0,103810.0,2.34913742]
[1747143276240,0.00013973,103820.0,103810.0,2.28707742]
[1747143276485,0.00013973,103820.0,103810.0,3.01561942]
[1747143277215,0.02903421,103820.0,103810.0,1.48748185]
[1747143277463,0.21204456,103820.0,103810.0,0.41912]
[1747143277697,0.26576606,103820.0,103810.0,0.003]
[1747143278213,0.36307546,103820.0,103810.0,0.003]
[1747143278661,0.37307546,103820.0,103810.0,0.002]
[1747143279134,0.211966,103790.0,103780.0,0.6828167]
[1747143279362,0.211966,103790.0,103780.0,0.95016723]
[1747143279363,0.02890348,103790.0,103780.0,0.95016723]
[1747143279590,0.03853748,103790.0,103780.0,0.94053221]
[1747143279830,0.21389179,103790.0,103780.0,0.24384]
[1747143280055,0.22726599,103790.0,103780.0,0.24384]
[1747143280523,0.22726599,103790.0,103780.0,0.24684]
[1747143280806,0.26926041,103790.0,103780.0,0.24684]
[1747143281038,0.38216981,103790.0,103780.0,0.033]